Workbook

Sheet Instructions
A1: COGO Intersections And Arcs Workbook
B2: v1.0

Sheet Dir-Dir
A1: Direction-Direction Intersection
C2: Input: | D2: Coodinates of two known points
D3: Azimuth from each known point
C4: Compute: | D4: Coordinates of single intersection point
B6: Point | C6: North | D6: East | E6: Azimuth | F6: Dist
B7: J | C7: 452.81 | D7: 726.12 | E7: 330 19 10 | F7: =((D8-D7)+(C7-C8)*TAN(RADIANS(dmstodeg(E8)))) / (SIN(RADIANS(dmstodeg(E7))) -COS(RADIANS(dmstodeg(E7)))*TAN(RADIANS(dmstodeg(E8))) ) -> 401.8437898
B8: K | C8: 742.2 | D8: 731.5 | E8: 286 17 35 | F8: =((C7-C8)+F7*COS(RADIANS(dmstodeg(E7))))/COS(RADIANS(dmstodeg(E8))) -> 212.909097
B9: diffs | C9: =C7-C8 -> -289.39 | D9: =D7-D8 -> -5.38
B11: Point | C11: North | D11: East
B12: P | C12: =C7+Lat(E7,F7) -> 801.931727 | D12: =D7+Dep(E7,F7) -> 527.1414808

Sheet Dir-Dist
A1: Direction-Distance Intersection
C2: Input: | D2: Coodinates of two known points
D3: Azimuth from one known point
D4: Distance from other known point
C5: Compute: | D5: Coordinates of the two intersection points, P1 and P2
B7: Point | C7: North | D7: East | E7: Azimuth
B8: J | C8: 1419.51 | D8: 3511.69 | E8: 329 46 45 | G8: Quadratic solution coefficients
C9: North | D9: East | E9: Distance | G9: a | H9: 1
B10: K | C10: 2056.64 | D10: 2341.36 | E10: 738.15 | G10: b | H10: =2*C11*COS(RADIANS(dmstodeg((E8))))+2*D11*SIN(RADIANS(dmstodeg((E8)))) -> -2279.211834
B11: diffs | C11: =C8-C10 -> -637.13 | D11: =D8-D10 -> 1170.33 | G11: c | H11: =C11^2+D11^2-E10^2 -> 1230741.523
B13: Point | C13: Dist from J | D13: North | E13: East
B14: =IF(C14>C15,"P2","P1") -> P2 | C14: =(-H10+SQRT(H10^2-4*H9*H11))/(2*H9) -> 1400.297542 | D14: =$C$8+Lat($E$8,C14) -> 2629.495682 | E14: =$D$8+Dep($E$8,C14) -> 2806.872395
B15: =IF(C15>C14,"P2","P1") -> P1 | C15: =(-H10-SQRT(H10^2-4*H9*H11))/(2*H9) -> 878.9142924 | D15: =$C$8+Lat($E$8,C15) -> 2178.97267 | E15: =$D$8+Dep($E$8,C15) -> 3069.302402

Sheet Dist-Dist
A1: Distance-Distance Intersection
C2: Input: | D2: Coordinates of two known points.
D3: Distance from each known point.
C4: Compute: | D4: Coordinates of the two intersection points, P1 and P2
B6: Point | C6: North | D6: East | E6: Radius
B7: J | C7: 4593.1 | D7: 1645.48 | E7: 559.83
B8: K | C8: 4942.56 | D8: 1014.02 | E8: 374.91
B9: diffs | C9: =C8-C7 -> 349.46 | D9: =D8-D7 -> -631.46
F10: Quadratic coefficients
B11: Point | C11: North | D11: East | F11: K | G11: =C7^2-C8^2+D7^2-D8^2+E8^2-E7^2 -> -1825815.994
B12: P1 | C12: =((D12*2*D9)+G11)/(-2*C9) -> 4574.615941 | D12: =(-G13-SQRT(G13^2-4*G12*G14))/(2*G12) -> 1085.95523 | F12: a | G12: =1+D9^2/C9^2 -> 4.265101943
B13: P2 | C13: =((D13*2*D9)+G11)/(-2*C9) -> 5077.014638 | D13: =(-G13+SQRT(G13^2-4*G12*G14))/(2*G12) -> 1363.990654 | F13: b | G13: =(2*D9*C7/C9)-(2*D7)+(D9*G11/C9^2) -> -10449.26895
F14: c | G14: =(G11*C7/C9)+(G11^2/(4*C9^2))+C7^2+D7^2-E7^2 -> 6317608.824

Sheet 3-Point-Arc
A1: Three-point Arc
C2: Input: | D2: Coordinates of three non-linear points
C3: Compute: | D3: Circle radius, R
D4: Coordinates of radius point, O
B6: Point | C6: North | D6: East | F6: Solution coefficients
B7: J | C7: 902.72 | D7: 1751.91 | F7: A | G7: =(D8^2-D9^2+C8^2-C9^2)/(D8-D9) -> -5919.717774
B8: K | C8: 870.76 | D8: 1237.76 | F8: B | G8: =(D7^2-D9^2+C7^2-C9^2)/(D7-D9) -> 4189.147937
B9: L | C9: 538.57 | D9: 1293.16 | F9: C | G9: =2*(C8-C9)/(D8-D9) -> -11.99241877
F10: D | G10: =2*(C7-C9)/(D7-D9) -> 1.587574932
B12: Radius Pt | C12: North | D12: East | E12: Radius
B13: O | C13: =(G7-G8)/(G9-G10) -> 744.393991 | D13: =(D7^2-D9^2+C7^2-C9^2-2*C13*(C7-C9))/(2*(D7-D9)) -> 1503.683349 | E13: =SQRT(($C$7-C13)^2+($D$7-D13)^2) -> 294.4207798

Sheet 3-Tangent-Arc
A1: Three-Tangent Arc
C2: Input: | D2: Coordinates of three known points
D3: Azimuth from each point
C4: Compute: | D4: Radius of tangent arc
D5: Coordinates of radius point, O
B7: Point | C7: North | D7: East | E7: Azimuth | F7: dN | G7: dE
B8: A | C8: 1513.48 | D8: 978.2 | E8: 44 12 02
B9: B | C9: 1904.46 | D9: 1129.07 | E9: 107 17 05 | F9: =C9-C8 -> 390.98 | G9: =D9-D8 -> 150.87
B10: C | C10: 1902.29 | D10: 1598.02 | E10: 156 20 45 | F10: =C10-C9 -> -2.17 | G10: =D10-D9 -> 468.95
B12: Line intersections | G12: Arc data
B13: PI | D13: dist | E13: North | F13: East | G13: Delta | H13: Tan dist
B14: G | C14: from A | D14: =((D9-D8)+(C8-C9)*TAN(RADIANS(dmstodeg(E9)))) / (SIN(RADIANS(dmstodeg(E8))) - COS(RADIANS(dmstodeg(E8)))*TAN(RADIANS(dmstodeg(E9))) ) -> 468.9501112 | E14: =C8+Lat(E8,D14) -> 1849.672139 | F14: =D8+Dep(E8,D14) -> 1305.138912 | G14: =degtodms(dmstodeg(E9)-dmstodeg(E8)) -> 63 05 03 | H14: =E20*TAN(RADIANS(dmstodeg(G14))/2) -> 219.7212038
B15: H | C15: from B | D15: =((D10-D9)+(C9-C10)*TAN(RADIANS(dmstodeg(E10)))) / (SIN(RADIANS(dmstodeg(E9))) - COS(RADIANS(dmstodeg(E9)))*TAN(RADIANS(dmstodeg(E10))) ) -> 567.4807174 | E15: =C9+Lat(E9,D15) -> 1735.849971 | F15: =D9+Dep(E9,D15) -> 1670.923322 | G15: =degtodms(dmstodeg(E10)-dmstodeg(E9)) -> 49 03 40 | H15: =E20*TAN(RADIANS(dmstodeg(G15))/2) -> 163.3632782
D16: diff | E16: =E15-E14 -> -113.8221682 | F16: =F15-F14 -> 365.7844098
B17: dGH | C17: =SQRT(E16^2+F16^2) -> 383.0844821 | D17: AzJO | E17: =degtodms(dmstodeg(E9)+SIGN(E20)*90) -> 197 17 05
B19: Radius Pt | C19: North | D19: East | E19: Radius | F19: Curve to
B20: O | C20: =E14+Lat(E9,H14)+Lat(E17,ABS(E20)) -> 1442.592069 | D20: =F14+Dep(E9,H14)+Dep(E17,ABS(E20)) -> 1408.579755 | E20: =C17/( TAN(RADIANS(dmstodeg(G14))/2 )+TAN(RADIANS(dmstodeg(G15))/2 )) -> 357.9619862 | F20: =IF(E20<0,"Left","Right") -> Right

Sheet Tangent-Radius
A1: Tangent Radius
C2: Input: | D2: Coordinates of known point
D3: Azimuth from known point
D4: Coordinates of radius point, O
C5: Compute: | D5: Radius of tangent arc
D7: North | E7: East | F7: Az to P
B8: Point | C8: Q | D8: 2200.94 | E8: 1510.91 | F8: 134 25 45
B9: Radius point | C9: O | D9: 2090.43 | E9: 1754.2 | F9: =degtodms(dmstodeg(F8)+90) -> 224 25 45
C10: diffs | D10: =D9-D8 -> -110.51 | E10: =E9-E8 -> 243.29
B12: Line QO | C12: dQO | D12: =SQRT(D10^2+E10^2) -> 267.2124327 | E12: AzQO | F12: =InverseAz(D10,E10) -> 114 25 44.57
B13: Triangle QOP | C13: Angle Q | D13: =degtodms(ABS(dmstodeg(F8)-dmstodeg(F12))) -> 20 00 0.43 | E13: dQP | F13: =D12*COS(RADIANS(dmstodeg(D13))) -> 251.0973607
C15: Point | D15: North | E15: East | F15: Radius
C16: P | D16: =D8+Lat(F8,F13) -> 2025.165079 | E16: =E8+Dep(F8,F13) -> 1690.222748 | F16: =D12*SIN(RADIANS(dmstodeg(D13))) -> 91.392558

Sheet Tangent-Dir
A1: Tangent-Direction
C2: Input: | D2: Coordinates of known point
D3: Coordinates of arc center
D4: Arc radius
C5: Compute: | D5: Direction to and coordinates of two tangent points, P1 and P2
D7: North | E7: East | F7: Radius
B8: Point | C8: Q | D8: 1325.15 | E8: 1243.6
B9: Radius pt | C9: O | D9: 1023.46 | E9: 1958.51 | F9: 500
D11: dN | E11: dE | F11: Dist | G11: Azimuth
C12: Line QO | D12: =D9-D8 -> -301.69 | E12: =E9-E8 -> 714.91 | F12: =SQRT(D12^2+E12^2) -> 775.959512 | G12: =InverseAz(D12,E12) -> 112 52 46.58
C13: angle g | D13: =degtodms(DEGREES(ASIN(F9/F12))) -> 40 07 04.69
C15: Point | D15: N | E15: E | F15: dQP | G15: AzQP
C16: P1 | D16: =D8+Lat(G16,F16) -> 796.4459358 | E16: =E8+Dep(G16,F16) -> 1513.016363 | F16: =SQRT(F12^2-F9^2) -> 593.3912404 | G16: =degtodms(dmstodeg(G12)+dmstodeg(D13)) -> 152 59 51.27
C17: P2 | D17: =D8+Lat(G17,F17) -> 1501.000107 | E17: =E8+Dep(G17,F17) -> 1810.336186 | F17: =F16 -> 593.3912404 | G17: =degtodms(dmstodeg(G12)-dmstodeg(D13)) -> 72 45 41.88
